Workbook

Sheet DATA
A1: WEIGHTED VOTING SYSTEM CALCULATOR
A3: Computes Voting Power Indexes
A5: Robert A. Agnew, raagnew1@gmail.com
A6: www.raagnew.com
C8: Inputs
A10: Click View > Macros > View Macros > Run in Excel 2016
A12: # of Players | B12: 51 | C12: Root Mean Square Distance | E12: =SQRT(SUM(G16:G66)) -> 1.16499% | F12: =SQRT(SUM(H16:H66)) -> 0.8784854%
A13: Quota | B13: 270 | E13: Banzhaf | F13: Shapley
B14: 2010 Census | C14: Voting | E14: Coleman | F14: Shubik | G14: Squared | H14: Squared
A15: Player | B15: Votes | C15: Index | D15: Swings | E15: Index | F15: Index | G15: Deviations | H15: Deviations
A16: California | B16: 55 | C16: =B16/B$67 -> 10.223% | D16: 530464653682739 | E16: =D16/D$67 -> 11.361% | F16: 11.030% | G16: =(C16-E16)^2 -> 0.0001294531112 | H16: =(C16-F16)^2 -> 6.506645403e-05
A17: Texas | B17: 38 | C17: 7.063% | D17: 336488186697933 | E17: =D17/D$67 -> 7.206% | F17: 7.322% | G17: 2.052990219e-06 | H17: 6.712260908e-06
A18: New York | B18: 29 | C18: 5.390% | D18: 252173735474113 | E18: 5.401% | F18: 5.483% | G18: 1.082529067e-08 | H18: 8.65840467e-07
A19: Florida | B19: 29 | C19: 5.390% | D19: 252173735474113 | E19: 5.401% | F19: 5.483% | G19: 1.082529067e-08 | H19: 8.65840467e-07
A20: Illinois | B20: 20 | C20: 3.717% | D20: 171659645743663 | E20: 3.676% | F20: 3.715% | G20: 1.687756564e-07 | H20: 6.318798035e-10
A21: Pennsylvania | B21: 20 | C21: 3.717% | D21: 171659645743663 | E21: 3.676% | F21: 3.715% | G21: 1.687756564e-07 | H21: 6.318798035e-10
A22: Ohio | B22: 18 | C22: 3.346% | D22: 154159781773031 | E22: 3.302% | F22: 3.331% | G22: 1.947026146e-07 | H22: 2.254032285e-08
A23: Michigan | B23: 16 | C23: 2.974% | D23: 136768683131125 | E23: 2.929% | F23: 2.949% | G23: 2.010493351e-07 | H23: 6.004876635e-08
A24: Georgia | B24: 16 | C24: 2.974% | D24: 136768683131125 | E24: 2.929% | F24: 2.949% | G24: 2.010493351e-07 | H24: 6.004876635e-08
A25: North Carolina | B25: 15 | C25: 2.788% | D25: 128109515949679 | E25: 2.744% | F25: 2.760% | G25: 1.972784748e-07 | H25: 7.921237558e-08
A26: New Jersey | B26: 14 | C26: 2.602% | D26: 119472352338831 | E26: 2.559% | F26: 2.571% | G26: 1.894191737e-07 | H26: 9.646460869e-08
A27: Virginia | B27: 13 | C27: 2.416% | D27: 110855556137941 | E27: 2.374% | F27: 2.383% | G27: 1.780197025e-07 | H27: 1.105918591e-07
A28: Washington | B28: 12 | C28: 2.230% | D28: 102257528272361 | E28: 2.190% | F28: 2.196% | G28: 1.637051464e-07 | H28: 1.207051644e-07
A29: Massachusetts | B29: 11 | C29: 2.045% | D29: 93676703259355 | E29: 2.006% | F29: 2.009% | G29: 1.471503036e-07 | H29: 1.262281925e-07
A30: Indiana | B30: 11 | C30: 2.045% | D30: 93676703259355 | E30: 2.006% | F30: 2.009% | G30: 1.471503036e-07 | H30: 1.262281925e-07
A31: Arizona | B31: 11 | C31: 2.045% | D31: 93676703259355 | E31: 2.006% | F31: 2.009% | G31: 1.471503036e-07 | H31: 1.262281925e-07
A32: Tennessee | B32: 11 | C32: 2.045% | D32: 93676703259355 | E32: 2.006% | F32: 2.009% | G32: 1.471503036e-07 | H32: 1.262281925e-07
A33: Missouri | B33: 10 | C33: 1.859% | D33: 85111546023493 | E33: 1.823% | F33: 1.823% | G33: 1.290555685e-07 | H33: 1.268856907e-07
A34: Maryland | B34: 10 | C34: 1.859% | D34: 85111546023493 | E34: 1.823% | F34: 1.823% | G34: 1.290555685e-07 | H34: 1.268856907e-07
A35: Wisconsin | B35: 10 | C35: 1.859% | D35: 85111546023493 | E35: 1.823% | F35: 1.823% | G35: 1.290555685e-07 | H35: 1.268856907e-07
A36: Minnesota | B36: 10 | C36: 1.859% | D36: 85111546023493 | E36: 1.823% | F36: 1.823% | G36: 1.290555685e-07 | H36: 1.268856907e-07
A37: Colorado | B37: 9 | C37: 1.673% | D37: 76560548827465 | E37: 1.640% | F37: 1.638% | G37: 1.101255698e-07 | H37: 1.226925948e-07
A38: Alabama | B38: 9 | C38: 1.673% | D38: 76560548827465 | E38: 1.640% | F38: 1.638% | G38: 1.101255698e-07 | H38: 1.226925948e-07
A39: South Carolina | B39: 9 | C39: 1.673% | D39: 76560548827465 | E39: 1.640% | F39: 1.638% | G39: 1.101255698e-07 | H39: 1.226925948e-07
A40: Louisiana | B40: 8 | C40: 1.487% | D40: 68022228399715 | E40: 1.457% | F40: 1.453% | G40: 9.105032117e-08 | H40: 1.139434888e-07
A41: Kentucky | B41: 8 | C41: 1.487% | D41: 68022228399715 | E41: 1.457% | F41: 1.453% | G41: 9.105032117e-08 | H41: 1.139434888e-07
A42: Oregon | B42: 7 | C42: 1.301% | D42: 59495123097629 | E42: 1.274% | F42: 1.269% | G42: 7.248870882e-08 | H42: 1.01202653e-07
A43: Oklahoma | B43: 7 | C43: 1.301% | D43: 59495123097629 | E43: 1.274% | F43: 1.269% | G43: 7.248870882e-08 | H43: 1.01202653e-07
A44: Connecticut | B44: 7 | C44: 1.301% | D44: 59495123097629 | E44: 1.274% | F44: 1.269% | G44: 7.248870882e-08 | H44: 1.01202653e-07
A45: Iowa | B45: 6 | C45: 1.115% | D45: 50977790391193 | E45: 1.092% | F45: 1.086% | G45: 5.505410685e-08 | H45: 8.529431963e-08
A46: Mississippi | B46: 6 | C46: 1.115% | D46: 50977790391193 | E46: 1.092% | F46: 1.086% | G46: 5.505410685e-08 | H46: 8.529431963e-08
A47: Arkansas | B47: 6 | C47: 1.115% | D47: 50977790391193 | E47: 1.092% | F47: 1.086% | G47: 5.505410685e-08 | H47: 8.529431963e-08
A48: Kansas | B48: 6 | C48: =B48/B$67 -> 1.115% | D48: 50977790391193 | E48: 1.092% | F48: 1.086% | G48: =(C48-E48)^2 -> 5.505410685e-08 | H48: =(C48-F48)^2 -> 8.529431963e-08
A49: Utah | B49: 6 | C49: 1.115% | D49: 50977790391193 | E49: 1.092% | F49: 1.086% | G49: 5.505410685e-08 | H49: 8.529431963e-08
A50: Nevada | B50: 6 | C50: 1.115% | D50: 50977790391193 | E50: 1.092% | F50: 1.086% | G50: 5.505410685e-08 | H50: 8.529431963e-08
A51: New Mexico | B51: 5 | C51: 0.929% | D51: 42468804166739 | E51: 0.910% | F51: 0.903% | G51: 3.930203758e-08 | H51: 6.729352485e-08
A52: West Virginia | B52: 5 | C52: 0.929% | D52: 42468804166739 | E52: 0.910% | F52: 0.903% | G52: 3.930203758e-08 | H52: 6.729352485e-08
A53: Nebraska | B53: 5 | C53: 0.929% | D53: 42468804166739 | E53: 0.910% | F53: 0.903% | G53: 3.930203758e-08 | H53: 6.729352485e-08
A54: Idaho | B54: 4 | C54: 0.743% | D54: 33966752265447 | E54: 0.727% | F54: 0.721% | G54: 2.571969428e-08 | H54: 4.851728508e-08
A55: Hawaii | B55: 4 | C55: 0.743% | D55: 33966752265447 | E55: 0.727% | F55: 0.721% | G55: 2.571969428e-08 | H55: 4.851728508e-08
A56: Maine | B56: 4 | C56: 0.743% | D56: 33966752265447 | E56: 0.727% | F56: 0.721% | G56: 2.571969428e-08 | H56: 4.851728508e-08
A57: New Hampshire | B57: 4 | C57: 0.743% | D57: 33966752265447 | E57: 0.727% | F57: 0.721% | G57: 2.571969428e-08 | H57: 4.851728508e-08
A58: Rhode Island | B58: 4 | C58: 0.743% | D58: 33966752265447 | E58: 0.727% | F58: 0.721% | G58: 2.571969428e-08 | H58: 4.851728508e-08
A59: Montana | B59: 3 | C59: 0.558% | D59: 25470234122519 | E59: 0.545% | F59: 0.540% | G59: 1.47172446e-08 | H59: 3.051603672e-08
A60: Delaware | B60: 3 | C60: 0.558% | D60: 25470234122519 | E60: 0.545% | F60: 0.540% | G60: 1.47172446e-08 | H60: 3.051603672e-08
A61: South Dakota | B61: 3 | C61: 0.558% | D61: 25470234122519 | E61: 0.545% | F61: 0.540% | G61: 1.47172446e-08 | H61: 3.051603672e-08
A62: Alaska | B62: 3 | C62: 0.558% | D62: 25470234122519 | E62: 0.545% | F62: 0.540% | G62: 1.47172446e-08 | H62: 3.051603672e-08
A63: North Dakota | B63: 3 | C63: 0.558% | D63: 25470234122519 | E63: 0.545% | F63: 0.540% | G63: 1.47172446e-08 | H63: 3.051603672e-08
A64: Vermont | B64: 3 | C64: 0.558% | D64: 25470234122519 | E64: 0.545% | F64: 0.540% | G64: 1.47172446e-08 | H64: 3.051603672e-08
A65: District of Columbia | B65: 3 | C65: 0.558% | D65: 25470234122519 | E65: 0.545% | F65: 0.540% | G65: 1.47172446e-08 | H65: 3.051603672e-08
A66: Wyoming | B66: 3 | C66: 0.558% | D66: 25470234122519 | E66: 0.545% | F66: 0.540% | G66: 1.47172446e-08 | H66: 3.051603672e-08
A67: Total | B67: =SUM(B16:B66) -> 538 | C67: =SUM(C16:C66) -> 100% | D67: =SUM(D16:D66) -> 4669244962411180 | E67: =SUM(E16:E66) -> 100% | F67: =SUM(F16:F66) -> 100%
A69: NOTE
A70: Calculator has been updated for 2010 Census and associated U.S. House apportionment.
A71: Spreadsheet runs in tandem with macro Calc.
A72: Solves Electoral College weighted voting system in less than 30 seconds on a modern PC.
A73: Change quota and click View > Macros > View Macros > Run in Excel 2016.
A74: Root Mean Square Distance is usual L2 norm, the square root of what Tannenbaum calls "faithfulness."
A75: In Mathematica Journal, Vol 7, Issue 1, Winter 1997, pp. 58-63, Tannenbaum shows that Banzhaf
A76: Root Mean Square Distance is minimized at a quota of 315 using 1990 census data. That number is now 316
A77: although it has no practical meaning since such a hurdle would never be implemented, because it would
A78: routinely throw presidential elections into the House. Moreover, the Electoral College is clearly an artifact that
A79: needs to be replaced by direct presidential elections, but this would require unlikely changes to the U.S. Constitution.
A80: Still, this treatment is interesting because it brings in game-theoretic power metrics which go beyond simple vote counts.
A82: Smaller weighted voting systems can be solved efficiently by changing the number of players and
A83: deleting unused cells (not rows), e.g., solve {12; 6,5,4,3,2,1} by entering 6 in B12, 12 in B13, 6,5,4,3,2,1 in
A84: B16:B21, deleting A22:F66 (again cells, not rows), solving, and saving as new file. System with more than 51 players
A85: and/or vote total exceeding 1,000 requires editing of worksheet (including range names) and dimensions in macro.
